{"text_format":"1","workbook":"xlsx","n_sheets":8,"sheets":["Index","General Info","Regulations","Table I","Table II","Table III","Taxonomy","TextBlock"],"not_rendered":{"charts":0,"images":1,"macros":1,"external_links":0,"defined_names":0,"comments":0,"pivot_tables":0},"unopened":[],"bounds":{"document_bytes":16777216,"sheet_cells":100000,"rows_first":2000,"rows_last":500,"rows_between":2000,"halvings":0,"cell_chars":16384,"cell_head_chars":4096},"cells_cut":0,"cells_raw":0,"read":"whole","date_system":"1900"}

{"sheet":"Index","index":0,"n_rows":52,"n_cols":10,"rows_kept":52,"cut":false,"hidden":false,"merged":[[0,9,4,10],[47,3,47,9],[48,3,48,9],[49,3,49,9],[50,3,50,9],[21,3,21,9],[22,3,22,9],[23,3,23,9],[26,3,26,9],[27,4,27,8],[28,4,28,8],[13,3,13,9],[14,3,14,9],[15,3,15,9],[18,3,18,9],[19,3,19,9],[51,3,51,9],[29,4,29,8],[30,4,30,8],[39,3,39,9],[40,3,40,9],[41,3,41,9],[44,3,44,9],[45,3,45,9],[46,3,46,9],[31,4,31,8],[34,3,34,9],[35,3,35,9],[36,3,36,9],[37,3,37,9],[38,3,38,9],[20,3,20,9],[5,4,5,8],[6,5,6,8],[7,5,7,8],[8,5,8,8],[9,5,9,8],[10,5,10,8]]}
[]
[]
[]
[]
[]
[null,null,null,null,"                                      XBRL Excel Utility"]
[null,null,null,null,"1.","Overview"]
[null,null,null,null,"2.","Before you begin"]
[null,null,null,null,"3.","Index"]
[null,null,null,null,"4.","Steps for Filing - Annual Secretarial Compliance Report"]
[null,null,null,null,"5.","Fill up the data in excel utility"]
[]
[]
[null,null,null,"1. Overview"]
[null,null,null,"The excel utility can be used for creating the XBRL/XML file for  Annual Secretarial Compliance Report "]
[null,null,null,"XBRL filling consists of two processes. Firstly generation of XBRL/XML file and then upload the generated XBRL/XML file to BSE Listing Center Website (www.listing.bseindia.com)."]
[]
[]
[null,null,null," 2.  Before you begin"]
[null,null,null,"1. The version of Microsoft Excel in your system should be Microsoft Office Excel 2010  and above."]
[null,null,null,"2. The system should have a file compression software to unzip excel utility file."]
[null,null,null,"3. Make sure that you have downloaded the latest Excel Utility from BSE Website to your local system."]
[null,null,null,"4. Make sure that you have downloaded the Chrome Browser to view report generated from Excel utility"]
[null,null,null,"5. Please enable the Macros (if disabled) as per instructions given in manual, so that all the functionalities of  Excel Utility works fine. Please first go through Enable Macro - Manual attached with zip file."]
[]
[]
[null,null,null,"3. Index "]
[null,null,null,1,"Details of general information about company",null,null,null,null,"General Info"]
[null,null,null,2,"Regulations Details",null,null,null,null,"Regulation"]
[null,null,null,3,"Table I Details",null,null,null,null,"Table I"]
[null,null,null,4,"Table II Details",null,null,null,null,"Table II"]
[null,null,null,5,"Table III Details",null,null,null,null,"Table III"]
[]
[]
[null,null,null,"4. Steps for Filing -Annual Secretarial Compliance Report"]
[null,null,null,"I.  Fill up the data: Navigate to each field of every section in the sheet to provide applicable data in correct format.  (Formats will get reflected while filling data.)  \n   - Use paste special command to paste data from other sheet.\n"]
[null,null,null,"II. Validating Sheets:  Click on the ''Validate \"  button to ensure that the sheet has been properly filled and also data has been furnished in proper format. If there are some errors on the sheet, excel utility will prompt you about the same."]
[null,null,null,"III. Validate All Sheets:  Click on the ''Home\"  button. And then click on \"Validate All Sheet\" button to ensure that all sheets has been properly filled and validated successfully. If there are some errors on the sheet, excel utility will prompt you about the same and stop validation at the same time. After correction, once again follow the same procedure to validate all sheets."]
[null,null,null,"Excel Utility will not allow you to generate XBRL/XML until you rectify all errors. "]
[null,null,null,"IV. Generate XML :   Excel Utility will not allow you to generate XBRL/XML unless successful validation of all sheet is completed. Now click on 'Generate XML'' to generate XBRL/XML file. \n    - Save the XBRL/XML file in your desired folder in local system. "]
[null,null,null,"V. Generate Report :   Excel Utility will allow you to generate Report. Now click on 'Generate Report'' to generate html report.   \n     - Save the HTML Report file in your desired folder in local system.     \n     - To view HTML Report open \"Chrome Web Browser\" . \n     - To print report in PDF Format, Click on print button and save as PDF. "]
[null,null,null,"VI. Upload XML file to BSE Listing Center: For uploading the XBRL/XML file generated through  Utility, login to BSE Listing Center and upload generated xml file. On Upload screen provide the required information and browse to select XML file and submit the XML.\n"]
[]
[]
[null,null,null,"5. Fill up the data in excel utility"]
[null,null,null,"1. Cells with red fonts indicate mandatory fields. "]
[null,null,null,"2. If mandatory field is left empty, then Utility will not allow you to proceed further for generating XML."]
[null,null,null,"3. You are not allowed to enter data in the Grey Cells."]
[null,null,null,"4. If fields are not applicable to your company then leave it blank. Do not insert Zero unless it is a mandatory field."]
[null,null,null,"5. Data provided must be in correct format, otherwise Utility will not allow you to proceed further for generating XML ."]
[null,null,null,"6. Select data from \"Dropdown list\" wherever applicable. "]
[null,null,null,"7. Adding Notes:  Click on \"Add Notes\" button to add notes "]

{"sheet":"General Info","index":1,"n_rows":29,"n_cols":9,"rows_kept":29,"cut":false,"hidden":false,"merged":[[8,4,8,5]]}
[]
[null,null,null,null,null,null,null,"Yes","ACS"]
[null,null,null,null,null,null,null,"No","FCS"]
[]
[]
[]
[]
[]
[null,null,null,null,"General information about company"]
[null,null,null,null,"Scrip Code*",539246]
[null,null,null,null,"NSE Symbol"]
[null,null,null,null,"MSEI Symbol"]
[null,null,null,null,"ISIN","INE805R01018"]
[null,null,null,null,"Name of the listed entity","Jyotirgamya Enterprises Limited"]
[null,null,null,null,"Date of start of financial year","01-04-2020"]
[null,null,null,null,"Date of end of financial year","31-03-2021"]
[null,null,null,null,"Date of Report","30-06-2021"]
[null,null,null,null,"Whether any observations reported by the Secretarial Auditor","Yes"]
[null,null,null,null,"The listed entity has maintained proper records under the provisions of the above Regulations and circulars/ guidelines issued thereunder insofar as it appears from my/our examination of those records.","Yes"]
[null,null,null,null,"Any actions taken against the listed entity/its promoters/directors/its material subsidiaries either by SEBI or by stock exchanges (including under the Standard operating procedures issued by SEBI through various circulars).","Yes"]
[null,null,null,null,"Is there any observation made in the previous report","Yes"]
[null,null,null,null,"Name of the Certifying Firm","Srishti Singh & Associates"]
[null,null,null,null,"Name of the practicing Company Secretary issuing the report","Srishti Singh"]
[null,null,null,null,"Membership Type","ACS"]
[null,null,null,null,"ACS/FCS No.",50820]
[null,null,null,null,"CP No.",21900]
[null,null,null,null,"Place","New Delhi"]
[null,null,null,null,"Date","30.06.2021"]
[null,null,null,null,"Company Remark"]

{"sheet":"Regulations","index":2,"n_rows":21,"n_cols":12,"rows_kept":21,"cut":false,"hidden":false,"merged":[[8,4,8,7]]}
[null,null,null,null,null,null,null,null,1]
[null,null,null,null,null,null,null,null,null,"Yes"]
[null,null,null,null,null,null,null,null,null,"No"]
[]
[]
[]
[]
[]
[null,null,null,null,"Regulations"]
[null,null,null,null,"Sr No","Regulation","Applicability during the period under review (Yes/No)","Any Observation (Yes/No)"]
[null,null,null,null,1,"Securities and Exchange Board of India (Listing Obligations and Disclosure Requirements) Regulations, 2015","Yes","Yes",null,null,{"$f":"+F11","v":"Securities and Exchange Board of India (Listing Obligations and Disclosure Requirements) Regulations, 2015"},{"$f":"INDEX($K$11:K20,COUNTA($K$11:K11),1)","v":"Securities and Exchange Board of India (Listing Obligations and Disclosure Requirements) Regulations, 2015"}]
[null,null,null,null,2,"Securities and Exchange Board of India (Issue of Capital and Disclosure Requirements) Regulations, 2018","Yes","No",null,null,{"$f":"+F12","v":"Securities and Exchange Board of India (Issue of Capital and Disclosure Requirements) Regulations, 2018"},{"$f":"INDEX($K$11:K20,COUNTA($K$11:K12),1)","v":"Securities and Exchange Board of India (Issue of Capital and Disclosure Requirements) Regulations, 2018"}]
[null,null,null,null,3,"Securities and Exchange Board of India (Substantial Acquisition of Shares and Takeovers) Regulations, 2011","Yes","No",null,null,"Securities and Exchange Board of India (Substantial Acquisition of Shares and Takeovers) Regulations, 2011",{"$f":"INDEX($K$11:K20,COUNTA($K$11:K13),1)","v":"Securities and Exchange Board of India (Substantial Acquisition of Shares and Takeovers) Regulations, 2011"}]
[null,null,null,null,4,"Securities and Exchange Board of India (Buyback of Securities) Regulations, 2018","No","No",null,null,"Securities and Exchange Board of India (Buyback of Securities) Regulations, 2018",{"$f":"INDEX($K$11:K20,COUNTA($K$11:K14),1)","v":"Securities and Exchange Board of India (Buyback of Securities) Regulations, 2018"}]
[null,null,null,null,5,"Securities and Exchange Board of India (Share Based Employee Benefits) Regulations, 2014","No","No",null,null,"Securities and Exchange Board of India (Share Based Employee Benefits) Regulations, 2014",{"$f":"INDEX($K$11:K20,COUNTA($K$11:K15),1)","v":"Securities and Exchange Board of India (Share Based Employee Benefits) Regulations, 2014"}]
[null,null,null,null,6,"Securities and Exchange Board of India (Issue and Listing of Debt Securities) Regulations, 2008","No","No",null,null,"Securities and Exchange Board of India (Issue and Listing of Debt Securities) Regulations, 2008",{"$f":"INDEX($K$11:K22,COUNTA($K$11:K16),1)","v":"Securities and Exchange Board of India (Issue and Listing of Debt Securities) Regulations, 2008"}]
[null,null,null,null,7,"Securities and Exchange Board of India(Issue and Listing of Non-Convertible and Redeemable Preference Shares) Regulations,2013","No","No",null,null,"Securities and Exchange Board of India(Issue and Listing of Non-Convertible and Redeemable Preference Shares) Regulations,2013",{"$f":"INDEX($K$11:K23,COUNTA($K$11:K17),1)","v":"Securities and Exchange Board of India(Issue and Listing of Non-Convertible and Redeemable Preference Shares) Regulations,2013"}]
[null,null,null,null,8,"Securities and Exchange Board of India (Prohibition of Insider Trading) Regulations, 2015","Yes","No",null,null,"Securities and Exchange Board of India (Prohibition of Insider Trading) Regulations, 2015",{"$f":"INDEX($K$11:K24,COUNTA($K$11:K18),1)","v":"Securities and Exchange Board of India (Prohibition of Insider Trading) Regulations, 2015"}]
[null,null,null,null,9,"Specify any other regulation applicable to the Company",null,null,null,null,null,{"$f":"INDEX($K$11:K25,COUNTA($K$11:K19)+3,1)","v":" Securities and Exchange Board of India (Depositories and Participants) Regulations, 2018 and Securities and Exchange Board of India (Depositories and Participants) Regulations, 1996 "}]
[null,null,null,null,null,null,null,null,null,null,{"$f":"+F20","v":0},{"$f":"INDEX($K$11:K26,COUNTA($K$11:K20)+3,1)","v":0}]
[null,null,null,null,1," Securities and Exchange Board of India (Depositories and Participants) Regulations, 2018 and Securities and Exchange Board of India (Depositories and Participants) Regulations, 1996 ","Yes","Yes",null,null,{"$f":"+F21","v":" Securities and Exchange Board of India (Depositories and Participants) Regulations, 2018 and Securities and Exchange Board of India (Depositories and Participants) Regulations, 1996 "},{"$f":"INDEX($K$11:K27,COUNTA($K$11:K21)+3,1)","v":0}]

{"sheet":"Table I","index":3,"n_rows":20,"n_cols":10,"rows_kept":20,"cut":false,"hidden":false,"merged":[[8,4,8,9]]}
[null,null,null,null,null,null,null,null,8]
[]
[]
[]
[]
[]
[]
[]
[null,null,null,null,"Table I"]
[null,null,null,null,"Sr No","Regulation Name/ SEBI Circular number","Regulation Number/ circular dated","Compliance requirement (regulations/circulars/ guidelines including specific clauses)","Deviations","Observation details"]
[]
[]
[null,null,null,null,1,null,null,null,"• Late submission of Statement of Investor Complaints for the quarter ended June 2020","• The Listed Entity has submitted the Statement of Investor Complaints for the quarter ended 30th June, 2020 on 22nd July, 2020 which was required to be filed by 21st July, 2020. The delay was on account of pandemic situation in the Country and consequent lockdown. The Company had already applied for the waiver of the penalty imposed by the Board for the delay of one day."]
[null,null,null,null,2,null,null,"Regulation 31 of SEBI (Listing Obligations And Disclosure Requirements) Regulations, 2015","·      Late submission of Statement of Shareholding Pattern for the quarter ended March 2020 and June 2020","• The Listed Entity has submitted its Statement of Shareholding Pattern for the quarter ended 31st Mar, 2020 on 16th May, 2020 which was required to be filed by 15th May, 2020 (In line with Circular No. SEBI/HO/CFD/CMD1/CIR/P/2020/79 dated 12th May, 2020 issued by SEBI). The delay was on account of pandemic situation in the Country and consequent lockdown.\n\n• The Listed Entity has submitted its Statement of Shareholding Pattern for the quarter ended 30th June, 2020 on 22nd July, 2020 which was required to be filed by 21st July, 2020. The Company had already applied for the waiver of the penalty imposed by the Board for the delay of one day.\n"]
[null,null,null,null,3,null,null,"Regulation 33 of  SEBI (Listing Obligations And Disclosure Requirements) Regulations, 2015","Irregularity in submission of Financial Results for the quarter ended March 2020 and December 2020","·       The Company uploaded the financial results on 31st July, 2020 unaccompanied with Audit Report for the quarter ended March, 2020. The same was made good by the Company on 1st August, 2020 by uploading the Financial Results complete with Audit Report."]
[null,null,null,null,4,null,null,"Regulation 76 of  SEBI (Depositories and Participants) Regulations, 2018","·      Late submission of Reconciliation of Share Capital Audit Report for the quarter ended June 2020 and September 2020","• The Listed Entity has submitted its Reconciliation of Share Capital Audit Report for the quarter ended March, 2020 on 18th  August, 2020 which was required to be filed by 30th July, 2020. The delay was on account of pandemic situation in the Country and consequent lockdown.\n\n• There was certain irregularity / discrepancy in filing of Reconciliation of Share Capital Audit Report under Regulation 76 for the quarter ended 30th September, 2020 on 30th October, 2020, which was made good by the Company by filing the revised Report on 3rd November, 2020.\n"]
[null,null,null,null,5,null,null,"Regulation 7(3) of  SEBI (Listing Obligations And Disclosure Requirements) Regulations, 2015","·     Irregularity in submission of Compliance Certificate under Regulation 7(3) of the SEBI (Listing Obligations and Disclosure Requirements) Regulations, 2015 for the quarter ended 30th September, 2020","·     There was certain irregularity / discrepancy in filing of Compliance Certificate under Regulation 7(3) of the SEBI (Listing Obligations and Disclosure Requirements) Regulations, 2015 for the quarter ended 30th September, 2020, which was made good by the Company by filing the revised Certificate on 3rd November, 2020."]
[null,null,null,null,6,null,null,"Regulation 40 (9) of  SEBI (Listing Obligations And Disclosure Requirements) Regulations, 2015","Late submission of Certificate under Regulation 40 (9) of SEBI (Listing Obligations And Disclosure Requirements) Regulations, 2015","The Listed Entity has submitted its Reconciliation of Share Capital Audit Report for the quarter ended March, 2020 on 18th  August, 2020 which was required to be filed by 31st May, 2020. The delay was on account of non release of date from Depository in spite payment of all the dues as their offices were closed on account of lockdown."]
[null,null,null,null,7,null,null,"Regulation 46 of  SEBI (Listing Obligations And Disclosure Requirements) Regulations, 2015","Improper maintenance of functional website","The listed entity is not maintaining website as per Regulation 46 of SEBI (Listing Obligations And Disclosure Requirements) Regulations, 2015, The Company is in the process of updating its website."]
[null,null,null,null,8,null,null,"Regulation 6 (1) of  SEBI (Listing Obligations And Disclosure Requirements) Regulations, 2015","Listed Entity has not appointed a Company Secretary as the compliance officer.","The earlier incumbent has resigned from the post of Compliance Officer on 14/08/2019. The Company made good the loss by appointing the Company Secretary & Compliance Office on 24th August, 2020."]

{"sheet":"Table II","index":4,"n_rows":13,"n_cols":9,"rows_kept":13,"cut":false,"hidden":false,"merged":[[8,4,8,8]]}
[null,null,null,null,null,null,null,null,1]
[]
[]
[]
[]
[]
[]
[]
[null,null,null,null,"Table II"]
[null,null,null,null,"Sr No","Action taken by","Details of violation","Details of action taken Eg fines, warning letter, debarment Etc","Observations/remarks of the practising Company Secretary, if any"]
[]
[]
[null,null,null,null,1,"Bombay Stock Exchange Limited.","Late submission of Statement of Investor Complaint and Shareholding Pattern under Regulation 13(3) and 31 respectively for the quarter ended 30th, June 2020 and non appointment of Company Secretary & Compliance Officer under Regulation 6 (1).","Fine of Rs. 1,07,380/- levied for violating the provisions of Regulation 6 (1) and Fine of Rs. Rs. 4,720/-  levied for violating the provisions of Regulation 13(3) and 31. ","The Listed entity had already applied for and got the partial waiver of penalty from BSE Ltd. The Company has applied for complete waiver."]

{"sheet":"Table III","index":5,"n_rows":16,"n_cols":22,"rows_kept":16,"cut":false,"hidden":false,"merged":[[8,4,8,9]]}
[null,null,null,null,null,null,null,null,4]
[]
[]
[]
[]
[null,null,null,null,null,null,null,null,null,null,null,null,null,"Securities and Exchange Board of India (Listing Obligations and Disclosure Requirements) Regulations, 2015","Securities and Exchange Board of India (Issue of Capital and Disclosure Requirements) Regulations, 2018","Securities and Exchange Board of India (Substantial Acquisition of Shares and Takeovers) Regulations, 2011","Securities and Exchange Board of India (Buyback of Securities) Regulations, 2018","Securities and Exchange Board of India (Share Based Employee Benefits) Regulations, 2014","Securities and Exchange Board of India (Issue and Listing of Debt Securities) Regulations, 2008","Securities and Exchange Board of India(Issue and Listing of Non-Convertible and Redeemable Preference Shares) Regulations,2013","Securities and Exchange Board of India (Prohibition of Insider Trading) Regulations, 2015","Specify any other regulation applicable to the Company"]
[]
[]
[null,null,null,null,"Table III"]
[null,null,null,null,"Sr No","Regulation Name/ SEBI Circular number*","Observations of the practicing Company secretary in the previous reports","Observations made in the secretarial compliance report for the year ended.(the years are to be mentioned)","Actions taken by the listed entity, if any","Comments of the practicing company secretary on the actions taken by the listed entity."]
[]
[]
[null,null,null,null,1,"Securities and Exchange Board of India (Listing Obligations and Disclosure Requirements) Regulations, 2015","Regulation 29(1)(a) & 29(2) of  SEBI (Listing Obligations And Disclosure Requirements) Regulations, 2015","Delay in giving prior intimation to Exchange about the Meeting of the Board of Directors for consideration of Quarterly Financial Results for the period ended 30th, September, 2019.","The Listed entity had applied for the waiver of such fines imposed on it and making payment of rest of the amount. The Company had ensured the compliance of the same in future","The Listed entity had applied for the waiver and it will make good the default and ensure the compliance in future."]
[null,null,null,null,2,"Securities and Exchange Board of India (Listing Obligations and Disclosure Requirements) Regulations, 2015","Regulation 33 of  SEBI (Listing Obligations And Disclosure Requirements) Regulations, 2015","• Late submission of Financial Results for the quarter ended 31st, March, 2019 and 30th September, 2019. \n\n• Financial Results for the quarter ended 31st December, 2019 filed on 14th, February, 2020 without Limited Review Report (LRR) from Auditor.\n","The Listed entity had applied for the waiver of such fines imposed on it and making payment of rest of the amount. The Company had ensured the compliance of the same in future","The Listed entity had applied for the waiver and it will make good the default and ensure the compliance in future."]
[null,null,null,null,3,"Securities and Exchange Board of India (Listing Obligations and Disclosure Requirements) Regulations, 2015","Regulation 33 of  SEBI (Listing Obligations And Disclosure Requirements) Regulations, 2015","Financial Results shall be published in Newspaper within 48 hours of conclusion of Board Meeting.","The Company had ensured the compliance of the same in future","The Company had ensured the compliance of the same in future"]
[null,null,null,null,4,"Securities and Exchange Board of India (Listing Obligations and Disclosure Requirements) Regulations, 2015","Regulation 6 (1) of SEBI (Listing Obligations And Disclosure Requirements) Regulations, 2015","Listed Entity has not appointed a Company Secretary as the compliance officer.","The Listed entity had already applied for and got the partial waiver of penalty from BSE Ltd. The Company has applied for complete waiver.","The Company had got the partial waiver of Rs. 51,920/- and applied for complete waiver as well."]

{"sheet":"Taxonomy","index":6,"n_rows":45,"n_cols":5,"rows_kept":45,"cut":false,"hidden":true,"merged":[]}
["Element","Label","Type","PeriodType","Valdiation"]
["ScripCode","Scrip Code*","in-capmkt-types:ScripCode","instant"]
["NSESymbol","NSE Symbol","xbrli:stringItemType","instant"]
["MSEISymbol","MSEI Symbol","xbrli:stringItemType","instant"]
["ISIN","ISIN","in-capmkt-types:ISINNumber","instant"]
["NameOfTheCompany","Name of the listed entity","xbrli:stringItemType","instant"]
["DateOfStartOfFinancialYear","Date of start of financial year","xbrli:dateItemType","instant"]
["DateOfEndOfFinancialYear","Date of end of financial year","xbrli:dateItemType","instant"]
["DateOfReport","Date of Report","xbrli:dateItemType","instant"]
["WhetherAnyObservationsReportedByTheSecretarialAuditor","Whether any observations reported by the Secretarial Auditor","xbrli:booleanItemType","instant"]
["WhetherTheListedEntityHasMaintainedProperRecordsUnderTheProvisionsOfTheAboveRegulationsAndCircularsGuidelinesIssuedThereunderInSofarAsItAppearsFromMyOurExaminationOfThoseRecords","The listed entity has maintained proper records under the provisions of the above Regulations and circulars/ guidelines issued thereunder insofar as it appears from my/our examination of those records.","xbrli:booleanItemType","instant"]
["AnyActionStakenAgainstTheListedEntityItsPromotersDirectorsItsMaterialSubsidiariesEitherBySEBIOrByStockExchangesIncludingUnderTheStandardOperatingProceduresIssuedBySEBIThroughVariousCirculars","Any actions taken against the listed entity/its promoters/directors/its material subsidiaries either by SEBI or by stock exchanges (including under the Standard operating procedures issued by SEBI through various circulars).","xbrli:booleanItemType","instant"]
["IsthereAnyObservationMadeInThePreviousReport","Is there any observation made in the previous report","xbrli:booleanItemType","instant"]
["NameOfTheCertifyingFirm","Name of the Certifying Firm","xbrli:stringItemType","duration"]
["NameOfThePracticingCompanySecretaryIssuingTheReport","Name of the practicing Company Secretary issuing the report","xbrli:stringItemType","duration"]
["MembershipType","Membership Type","in-capmkt-types:MembershipType","duration"]
["MembershipNumber","ACS/FCS No.","xbrli:stringItemType","duration"]
["CertificateOfPracticeNumber","CP No.","xbrli:stringItemType","duration"]
["Place","Place","xbrli:stringItemType","duration"]
["DateOfSigning","Date","xbrli:dateItemType","instant"]
["CompanyRemarksExplanatory","Company Remark","nonnum:textBlockItemType","instant"]
["REGULATIONS"]
["ApplicabilityDuringThePeriodUnderReview","Applicability during the period under review (Yes/No)","xbrli:booleanItemType","instant"]
["Observation","Any Observation (Yes/No)","xbrli:booleanItemType","instant"]
["REGULATIONS  Dynamic"]
["NameOfRegulationOrSebiCircularNumber","Regulation","xbrli:stringItemType","instant"]
["ApplicabilityDuringThePeriodUnderReview","Applicability during the period under review (Yes/No)","xbrli:booleanItemType","instant"]
["Observation","Any Observation (Yes/No)","xbrli:booleanItemType","instant"]
["TABLE-I"]
["NameOfRegulationOrSebiCircularNumber","Regulation Name/ SEBI Circular number","xbrli:stringItemType","instant"]
["RegulationNumberOrCircularDated","Regulation Number/ circular dated","xbrli:stringItemType","instant"]
["ComplianceRequirement","Compliance requirement (regulations/circulars/ guidelines including specific clauses)","xbrli:stringItemType","instant"]
["DetailsOfDeviations","Deviations","xbrli:stringItemType","instant"]
["ObservationDetails","Observation details","xbrli:stringItemType","instant"]
["TABLE-II"]
["ActionTakenBy","Action taken by","xbrli:stringItemType","instant"]
["DetailsOfViolation","Details of violation","xbrli:stringItemType","instant"]
["DetailsOfActionTaken","Details of action taken Eg fines, warning letter, debarment Etc","xbrli:stringItemType","instant"]
["ObservationsRemarksOfThePractisingCompanySecretary","Observations/remarks of the practising Company Secretary, if any","xbrli:stringItemType","instant"]
["TABLE-III"]
["NameOfRegulationOrSebiCircularNumber","Regulation Name/ SEBI Circular number*","xbrli:stringItemType","instant"]
["ObservationsOfThePracticingCompanySecretaryInThePreviousReports","Observations of the practicing Company secretary in the previous reports","xbrli:stringItemType","instant"]
["ObservationsMadeInTheSecretarialComplianceReport","Observations made in the secretarial compliance report for the year ended.(the years are to be mentioned)","xbrli:stringItemType","instant"]
["ActionsTakenByTheListedEntity","Actions taken by the listed entity, if any","xbrli:stringItemType","instant"]
["CommentsOfThePracticingCompanySecretaryOnTheActionsTakenByTheListedEntity","Comments of the practicing company secretary on the actions taken by the listed entity.","xbrli:stringItemType","instant"]

{"sheet":"TextBlock","index":7,"n_rows":8,"n_cols":5,"rows_kept":8,"cut":false,"hidden":true,"merged":[]}
[null,"115100102100102100",null,null,9]
[]
[null,"100100"]
[null,"100100"]
[]
[null,"084104105115032105115032077121032076111099097108032086097099116105110099101"]
[null,"084104105115032105115032077121032076111099097108032086097099116105110099101"]
[null,"084104105115032105115032077121032076111099097108032086097099116105110099101"]